fUSD/lending_fUSD_20240827
["ID","MTS","AMOUNT","RATE_DAILY","PERIOD"]
[336222118,1724740286247,-598.01189165,0.00010958,2]
[336222119,1724740286256,-556.28564268,0.00010958,2]
[336222120,1724740286266,-500.0,0.00010958,2]
[336222121,1724740286275,-500.0,0.00010958,2]
[336222122,1724740286284,-500.0,0.00010958,2]
[336222123,1724740286294,-500.0,0.00010958,2]
[336222124,1724740286304,-500.0,0.00010958,2]
[336222125,1724740286313,-500.52484913,0.00010958,2]
[336222126,1724740286323,-1319.93,0.00010958,2]
[336222127,1724740286333,-500.0,0.00010958,2]
[336222128,1724740286342,-533.0364898,0.00010958,2]
[336222129,1724740286353,-1319.93,0.00010958,2]
[336222130,1724740286363,-542.8019425,0.00010958,2]
[336222131,1724740286372,-500.0,0.00010958,2]
[336222132,1724740286382,-500.0,0.00010958,2]
[336222133,1724740286391,-1319.93,0.00010958,2]
[336222134,1724740286401,-500.0,0.00010958,2]
[336222135,1724740286411,-500.0,0.00010958,2]
[336222136,1724740286420,-1319.93,0.00010958,2]
[336222137,1724740286431,-500.0,0.00010958,2]
[336222138,1724740286440,-502.39984911,0.00010958,2]
[336222139,1724740286452,-1319.93,0.00010958,2]
[336222140,1724740286461,-500.0,0.00010958,2]
[336222141,1724740286472,-500.0,0.00010958,2]
[336222142,1724740286481,-1319.93,0.00010958,2]
[336222143,1724740286491,-500.0,0.00010958,2]
[336222144,1724740286501,-545.79330442,0.00010958,2]
[336222145,1724740286511,-1319.93,0.00010958,2]
[336222146,1724740286520,-500.0,0.00010958,2]
[336222147,1724740286530,-1319.93,0.00010958,2]
[336222148,1724740286539,-442.99302,0.00010958,2]
[336222149,1724740286548,-282.92,0.00010958,2]
[336222150,1724740286558,-512.41490997,0.00010958,2]
[336222151,1724740286568,-442.99302,0.00010958,2]
[336222152,1724740286580,-1319.93,0.00010958,2]
[336222153,1724740286590,-1319.93,0.00010958,2]
[336222154,1724740286600,-442.99302,0.00010958,2]
[336222155,1724740286609,-1319.93,0.00010958,2]
[336222156,1724740286619,-500.0,0.00010958,2]
[336222157,1724740286632,-442.99302,0.00010958,2]
[336222158,1724740286643,-1319.93,0.00010958,2]
[336222159,1724740286653,-500.0,0.00010958,2]
[336222160,1724740286664,-1319.93,0.00010958,2]
[336222161,1724740286674,-500.0,0.00010958,2]
[336222162,1724740286684,-442.99302,0.00010958,2]
[336222163,1724740286694,-500.0,0.00010958,2]
[336222164,1724740286704,-1319.93,0.00010958,2]
[336222165,1724740286714,-500.0,0.00010958,2]
[336222166,1724740286724,-500.49475727,0.00010958,2]
[336222167,1724740286734,-500.0,0.00010958,2]
[336222168,1724740286744,-528.53909223,0.00010958,2]
[336222169,1724740286755,-500.0,0.00010958,2]
[336222170,1724740286764,-1319.93,0.00010958,2]
[336222171,1724740286775,-500.0,0.00010958,2]
[336222172,1724740286784,-1319.93,0.00010958,2]
[336222173,1724740286794,-500.0,0.00010958,2]
[336222174,1724740286803,-500.0,0.00010958,2]
[336222175,1724740286813,-1319.93,0.00010958,2]
[336222176,1724740286824,-500.0,0.00010958,2]
[336222177,1724740286834,-500.0,0.00010958,2]
[336222178,1724740286844,-500.0,0.00010958,2]
[336222179,1724740286854,-502.19556078,0.00010958,2]
[336222180,1724740286864,-500.0,0.00010958,2]
[336222181,1724740286874,-500.0,0.00010958,2]
[336222182,1724740286884,-500.0,0.00010958,2]
[336222183,1724740286894,-500.0,0.00010958,2]
[336222184,1724740286903,-442.99302,0.00010958,2]
[336222185,1724740286914,-500.0,0.00010958,2]
[336222186,1724740286924,-500.94575312,0.00010958,2]
[336222187,1724740286934,-226.29553031,0.00010958,2]
[336222188,1724740286944,-500.0,0.00010958,2]
[336222189,1724740286954,-442.99302,0.00010958,2]
[336222190,1724740286964,-500.0,0.00010958,2]
[336222191,1724740286974,-442.99302,0.00010958,2]
[336222192,1724740286983,-500.0,0.00010958,2]
[336222193,1724740286993,-442.99302,0.00010958,2]
[336222194,1724740287002,-500.0,0.00010958,2]
[336222195,1724740287011,-500.0,0.00010958,2]
[336222196,1724740287020,-500.0,0.00010958,2]
[336222197,1724740287030,-500.0,0.00010958,2]
[336222198,1724740287039,-442.99302,0.00010958,2]
[336222199,1724740287048,-492.82429425,0.00010958,2]
[336222200,1724740287057,-500.0,0.00010958,2]
[336222201,1724740287067,-500.0,0.00010958,2]
[336222202,1724740287076,-500.0,0.00010958,2]
[336222203,1724740287085,-515.86113508,0.00010958,2]
[336222204,1724740287094,-500.0,0.00010958,2]
[336222205,1724740287104,-566.12,0.00010958,2]
[336222206,1724740287114,-196.45065765,0.00010958,2]
[336222207,1724740287127,-500.0,0.00010958,2]
[336222208,1724740287137,-566.12,0.00010958,2]
[336222209,1724740287146,-500.0,0.00010958,2]
[336222210,1724740287156,-500.0,0.00010958,2]
[336222211,1724740287170,-501.61396602,0.00010958,2]
[336222212,1724740287179,-566.12,0.00010958,2]
[336222213,1724740287189,-500.0,0.00010958,2]
[336222214,1724740287199,-500.0,0.00010958,2]
[336222215,1724740287208,-566.12,0.00010958,2]
[336222216,1724740287217,-500.0,0.00010958,2]
[336222217,1724740287227,-566.12,0.00010958,2]
[336222218,1724740287236,-500.0,0.00010958,2]
[336222219,1724740287245,-500.0,0.00010958,2]
[336222220,1724740287255,-500.0,0.00010958,2]
[336222221,1724740287264,-566.12,0.00010958,2]
[336222222,1724740287273,-500.0,0.00010958,2]
[336222223,1724740287283,-500.0,0.00010958,2]
[336222224,1724740287292,-500.29240478,0.00010958,2]
[336222225,1724740287301,-566.12,0.00010958,2]
[336222226,1724740287311,-500.0,0.00010958,2]
[336222227,1724740287320,-500.0,0.00010958,2]
[336222228,1724740287329,-566.12,0.00010958,2]
[336222229,1724740287338,-500.0,0.00010958,2]
[336222230,1724740287348,-500.0,0.00010958,2]
[336222231,1724740287357,-500.0,0.00010958,2]
[336222232,1724740287366,-546.28466805,0.00010958,2]
[336222233,1724740287376,-566.12,0.00010958,2]
[336222234,1724740287385,-500.0,0.00010958,2]
[336222235,1724740287395,-367.18736827,0.00010958,2]
[336222236,1724740287404,-566.12,0.00010958,2]
[336222237,1724740287414,-500.0,0.00010958,2]
[336222238,1724740287423,-500.0,0.00010958,2]
[336222239,1724740287432,-566.12,0.00010958,2]
[336222240,1724740287442,-500.0,0.00010958,2]
[336222241,1724740287453,-500.0,0.00010958,2]
[336222242,1724740287463,-500.0,0.00010958,2]
[336222243,1724740287473,-566.12,0.00010958,2]
[336222244,1724740287482,-186.6753917,0.00010958,2]
[336222245,1724740287491,-311.63959612,0.00010958,2]
[336222246,1724740287501,-509.79219435,0.00010958,2]
[336222247,1724740287510,-566.12,0.00010958,2]
[336222248,1724740287520,-566.12,0.00010958,2]
[336222249,1724740287531,-566.12,0.00010958,2]
[336222250,1724740287541,-500.0,0.00010958,2]
[336222251,1724740287552,-566.12,0.00010958,2]
[336222252,1724740287561,-1042.9,0.00010958,2]
[336222253,1724740287573,-428.79764075,0.00010958,2]
[336222254,1724740287583,-1042.9,0.00010958,2]
[336222255,1724740287592,-500.0,0.00010958,2]
[336222256,1724740287603,-566.12,0.00010958,2]
[336222257,1724740287612,-1042.9,0.00010958,2]
[336222258,1724740287622,-500.0,0.00010958,2]
[336222259,1724740287631,-566.12,0.00010958,2]
[336222260,1724740287641,-1042.9,0.00010958,2]
[336222261,1724740287651,-527.82723313,0.00010958,2]
[336222262,1724740287660,-500.0,0.00010958,2]
[336222263,1724740287669,-566.12,0.00010958,2]
[336222264,1724740287679,-1042.9,0.00010958,2]
[336222265,1724740287688,-500.0,0.00010958,2]
[336222266,1724740287697,-500.0,0.00010958,2]
[336222267,1724740287706,-556.16797932,0.00010958,2]
[336222268,1724740287715,-500.0,0.00010958,2]
[336222269,1724740287725,-1042.9,0.00010958,2]
[336222270,1724740287734,-500.0,0.00010958,2]
[336222271,1724740287744,-500.0,0.00010958,2]
[336222272,1724740287754,-500.0,0.00010958,2]
[336222273,1724740287763,-1042.9,0.00010958,2]
[336222274,1724740287772,-500.0,0.00010958,2]
[336222275,1724740287781,-151.0,0.00010958,2]
[336222276,1724740287790,-500.0,0.00010958,2]
[336222277,1724740287800,-500.0,0.00010958,2]
[336222278,1724740287809,-1042.9,0.00010958,2]
[336222279,1724740287818,-500.0,0.00010958,2]
[336222280,1724740287827,-404.26425327,0.00010958,2]
[336222281,1724740287837,-500.0,0.00010958,2]
[336222282,1724740287847,-500.0,0.00010958,2]
[336222283,1724740287856,-1042.9,0.00010958,2]
[336222284,1724740287866,-494.27852897,0.00010958,2]
[336222285,1724740287876,-1042.9,0.00010958,2]
[336222286,1724740287885,-500.0,0.00010958,2]
[336222287,1724740287895,-500.0,0.00010958,2]
[336222288,1724740287905,-1042.9,0.00010958,2]
[336222289,1724740287915,-500.0,0.00010958,2]
[336222290,1724740287925,-500.0,0.00010958,2]
[336222291,1724740287935,-1042.9,0.00010958,2]
[336222292,1724740287944,-500.0,0.00010958,2]
[336222293,1724740287954,-500.0,0.00010958,2]
[336222294,1724740287964,-510.62644666,0.00010958,2]
[336222295,1724740287974,-506.36632352,0.00010958,2]
[336222296,1724740287984,-1042.9,0.00010958,2]
[336222297,1724740287993,-506.68150328,0.00010958,2]
[336222298,1724740288003,-506.97887667,0.00010958,2]
[336222299,1724740288013,-500.0,0.00010958,2]
[336222300,1724740288022,-1042.9,0.00010958,2]
[336222301,1724740288031,-500.0,0.00010958,2]
[336222302,1724740288041,-1042.9,0.00010958,2]
[336222303,1724740288050,-500.0,0.00010958,2]
[336222304,1724740288060,-1042.9,0.00010958,2]
[336222305,1724740288070,-406.39647433,0.00010958,2]
[336222306,1724740288079,-500.0,0.00010958,2]
[336222307,1724740288089,-500.0,0.00010958,2]
[336222308,1724740288099,-510.44706078,0.00010958,2]
[336222309,1724740288108,-500.0,0.00010958,2]
[336222310,1724740288118,-500.0,0.00010958,2]
[336222311,1724740288133,-506.50884803,0.00010958,2]
[336222312,1724740288143,-500.0,0.00010958,2]
[336222313,1724740288152,-500.0,0.00010958,2]
[336222314,1724740288162,-500.0,0.00010958,2]
[336222315,1724740288171,-501.6801,0.00010958,2]
[336222316,1724740288180,-533.56283033,0.00010958,2]
[336222317,1724740288190,-501.6801,0.00010958,2]
[336222318,1724740288199,-500.0,0.00010958,2]
[336222319,1724740288209,-150.32708276,0.00010958,2]
[336222320,1724740288218,-500.98958582,0.00010958,2]
[336222321,1724740288227,-501.6801,0.00010958,2]
[336222322,1724740288237,-508.6867487,0.00010958,2]
[336222323,1724740288246,-501.6801,0.00010958,2]
[336222324,1724740288256,-500.0,0.00010958,2]
[336222325,1724740288266,-500.0,0.00010958,2]
[336222326,1724740288275,-500.0,0.00010958,2]
[336222327,1724740288284,-501.6801,0.00010958,2]
[336222328,1724740288294,-500.0,0.00010958,2]
[336222329,1724740288303,-500.0,0.00010958,2]
[336222330,1724740288312,-501.01972167,0.00010958,2]
[336222331,1724740288321,-500.0,0.00010958,2]
[336222332,1724740288330,-500.0,0.00010958,2]
[336222333,1724740288339,-500.0,0.00010958,2]
[336222334,1724740288347,-500.0,0.00010958,2]
[336222335,1724740288357,-500.0,0.00010958,2]
[336222336,1724740288366,-500.0,0.00010958,2]
[336222337,1724740288376,-500.0,0.00010958,2]
[336222338,1724740288385,-500.0,0.00010958,2]
[336222339,1724740288394,-500.0,0.00010958,2]
[336222340,1724740288403,-500.0,0.00010958,2]
[336222341,1724740288414,-500.0,0.00010958,2]
[336222342,1724740288423,-500.0,0.00010958,2]
[336222343,1724740288433,-500.0,0.00010958,2]
[336222344,1724740288442,-500.0,0.00010958,2]
[336222345,1724740288451,-380.26570008,0.00010958,2]
[336222346,1724740288461,-504.04606149,0.00010958,2]
[336222347,1724740288470,-500.0,0.00010958,2]
[336222348,1724740288480,-500.0,0.00010958,2]
[336222349,1724740288489,-500.0,0.00010958,2]
[336222350,1724740288498,-318.23173645,0.00010958,2]
[336222351,1724740288508,-230.42267106,0.00010958,2]
[336222352,1724740288517,-500.0,0.00010958,2]
[336222353,1724740288527,-151.0,0.00010958,2]
[336222354,1724740288536,-502.70222196,0.00010958,2]
[336222355,1724740288545,-565.92650912,0.00010958,2]
[336222356,1724740288554,-501.6801,0.00010958,2]
[336222357,1724740288564,-151.0,0.00010958,2]
[336222358,1724740288573,-501.6801,0.00010958,2]
[336222359,1724740288582,-151.0,0.00010958,2]
[336222360,1724740288591,-501.6801,0.00010958,2]
[336222361,1724740288600,-151.0,0.00010958,2]
[336222362,1724740288609,-501.6801,0.00010958,2]
[336222363,1724740288618,-501.01607185,0.00010958,2]
[336222364,1724740288627,-501.6801,0.00010958,2]
[336222365,1724740288637,-151.0,0.00010958,2]
[336222366,1724740288646,-500.0,0.00010958,2]
[336222367,1724740288655,-500.0,0.00010958,2]
[336222368,1724740288664,-505.91986532,0.00010958,2]
[336222369,1724740288674,-500.0,0.00010958,2]
[336222370,1724740288683,-500.0,0.00010958,2]
[336222371,1724740288693,-2000.0,0.00010959,2]
[336222372,1724740288703,-248.2,0.00010959,2]
[336222373,1724740288712,-157.91,0.00010959,2]
[336222374,1724740288721,-162.23,0.00010959,2]
[336222375,1724740288731,-153.83,0.00010959,2]
[336222376,1724740288741,-250.0,0.00010959,2]
[336222377,1724740288750,-150.0,0.00010959,2]
[336222378,1724740288760,-162.53,0.00010959,2]
[336222379,1724740288770,-159.722,0.00010959,2]
[336222380,1724740288780,-500.0,0.00010973,2]
[336222381,1724740288789,-636.72,0.00010977,2]
[336222382,1724740288799,-1851.79,0.00010977,2]
[336222383,1724740288809,-1168.32,0.00010977,2]
[336222384,1724740288819,-500.0,0.00010977,2]
[336222385,1724740288828,-1062.0,0.00010977,2]
[336222386,1724740288838,-855.44,0.00010977,2]
[336222387,1724740288847,-534.39,0.00010977,2]
[336222388,1724740288856,-737.81,0.00010977,2]
[336222389,1724740288866,-606.48,0.00010977,2]
[336222390,1724740288876,-500.0,0.00010977,2]
[336222391,1724740288887,-568.79387151,0.00010977,2]
[336222392,1724740288897,-566.48,0.00010977,2]
[336222393,1724740288907,-754.64,0.00010977,2]
[336222394,1724740288918,-500.0,0.00010977,2]
[336222395,1724740288928,-500.0,0.00010977,2]
[336222396,1724740288939,-565.65,0.00010977,2]
[336222397,1724740288948,-500.0,0.00010977,2]
[336222398,1724740288958,-500.0,0.00010977,2]
[336222399,1724740288968,-500.0,0.00010977,2]
[336222400,1724740288977,-945.61,0.00010977,2]
[336222401,1724740288987,-540.58,0.00010977,2]
[336222402,1724740288997,-886.86,0.00010977,2]
[336222403,1724740289006,-500.0,0.00010977,2]
[336222404,1724740289016,-516.46,0.00010977,2]
[336222405,1724740289026,-500.0,0.00010977,2]
[336222406,1724740289036,-705.73,0.00010977,2]
[336222407,1724740289045,-500.0,0.00010977,2]
[336222408,1724740289054,-500.0,0.00010977,2]
[336222409,1724740289064,-631.13,0.00010977,2]
[336222410,1724740289074,-1319.67,0.00010977,2]
[336222411,1724740289083,-2232.54,0.00010977,2]
[336222412,1724740289093,-500.0,0.00010977,2]
[336222413,1724740289102,-500.0,0.00010977,2]
[336222414,1724740289112,-573.92,0.00010977,2]
[336222415,1724740289124,-1911.46,0.00010977,2]
[336222416,1724740289136,-631.73,0.00010977,2]
[336222417,1724740289147,-500.0,0.00010977,2]
[336222418,1724740289156,-713.41,0.00010977,2]
[336222419,1724740289167,-1242.32,0.00010977,2]
[336222420,1724740289179,-1363.52,0.00010977,2]
[336222421,1724740289189,-646.5,0.00010977,2]
[336222422,1724740289199,-503.5,0.00010977,2]
[336222423,1724740289209,-159.948922,0.00010977,2]
[336222424,1724740289219,-159.948922,0.00010977,2]
[336222425,1724740289229,-151.0,0.00010977,2]
[336222426,1724740289239,-153.296946,0.00010977,2]
[336222427,1724740289249,-743.627118,0.00010977,2]
[336222428,1724740289259,-153.296949,0.00010977,2]
[336222429,1724740289401,-743.627111,0.00010977,2]
[336222430,1724740289412,-296.40709,0.00010977,2]
[336222431,1724740289422,-296.407089,0.00010977,2]
[336222432,1724740289432,-673.425675,0.00010977,2]
[336222433,1724740289444,-673.425674,0.00010977,2]
[336222434,1724740289453,-521.27,0.00010977,2]
[336222435,1724740289463,-500.0,0.00010977,2]
[336222436,1724740289472,-1244.68,0.00010977,2]
[336222437,1724740289481,-513.18,0.00010977,2]
[336222438,1724740289490,-500.0,0.00010977,2]
[336222439,1724740289500,-1042.9,0.00010977,2]
[336222440,1724740289510,-653.0,0.0001098,3]
[336222441,1724740289520,-282.58486446,0.00010986,2]
[336222442,1724740289529,-500.0,0.00010986,2]
[336222443,1724740289539,-500.0,0.00010986,2]
[336222444,1724740289549,-30000.0,0.00010987,2]
[336222445,1724740289560,-277.671468,0.00010987,2]
[336222446,1724740289571,-1171.657329,0.00010987,2]
[336222447,1724740289582,-1171.65732,0.00010987,2]
[336222448,1724740289593,-151.0,0.00010987,2]
[336222449,1724740289603,-300.172439,0.00010987,2]
[336222450,1724740289613,-300.172432,0.00010987,2]
[336222451,1724740289623,-1402.97,0.00010991,2]
[336222452,1724740289633,-559.84,0.00010991,2]
[336222453,1724740289643,-561.86,0.00010991,2]
[336222454,1724740289652,-9384.94,0.00010991,2]
[336222455,1724740289664,-1031.49,0.00010991,2]
[336222456,1724740289674,-1031.49,0.00010991,2]
[336222457,1724740289683,-1031.49,0.00010991,2]
[336222458,1724740289692,-1031.49,0.00010991,2]
[336222459,1724740289704,-1031.61959999,0.00010991,2]
[336222460,1724740289713,-1319.93,0.00010991,2]
[336222461,1724740289723,-566.12,0.00010991,2]
[336222462,1724740289732,-566.12,0.00010991,2]
[336222463,1724740289742,-566.12,0.00010991,2]
[336222464,1724740289751,-566.12,0.00010991,2]
[336222465,1724740289760,-566.34,0.00010991,2]
[336222466,1724740289770,-270.517194,0.00010992,2]
[336222467,1724740289779,-1082.91,0.00010992,2]
[336222468,1724740289789,-2869.4430699,0.00010992,2]
[336222469,1724740289798,-2675.9047367,0.00010992,2]
[336222470,1724740289807,-2482.3664035,0.00010992,2]
[336222471,1724740289817,-2288.8280703,0.00010992,2]
[336222472,1724740289826,-2095.2897372,0.00010992,2]
[336222473,1724740289836,-6653.5445667,0.00010992,2]
[336222474,1724740289846,-6211.2368397,0.00010992,2]
[336222475,1724740289855,-5768.9291128,0.00010992,2]
[336222476,1724740289864,-5326.6213858,0.00010992,2]
[336222477,1724740289874,-4884.3136588,0.00010992,2]
[336222478,1724740289883,-16652.16,0.00010992,2]
[336222479,1724740289893,-26313.9486766,0.00010993,2]
[336222480,1724740289903,-150.0,0.00010997,2]
[336222481,1724740289913,-150.0,0.00010997,2]
[336222482,1724740289923,-150.0,0.00010997,2]
[336222483,1724740289932,-150.0,0.00010997,2]
[336222484,1724740289941,-150.0,0.00010997,2]
[336222485,1724740289951,-500.0,0.00010997,2]
[336222486,1724740289960,-544.59,0.00010997,2]
[336222487,1724740289969,-500.0,0.00010997,2]
[336222488,1724740289979,-500.0,0.00010997,2]
[336222489,1724740289988,-500.0,0.00010997,2]
[336222490,1724740289998,-500.0,0.00010997,2]
[336222491,1724740290007,-266.41,0.00010997,2]
[336222492,1724740290016,-150.0,0.00010998,2]
[336222493,1724740290026,-150.0,0.00010998,2]
[336222494,1724740290035,-150.0,0.00010998,2]
[336222495,1724740290045,-150.0,0.00010998,2]
[336222496,1724740290054,-150.0,0.00010998,2]
[336222497,1724740290064,-458.98357571,0.00010998,2]
[336222498,1724740290074,-1489.0,0.00010998,2]
[336222499,1724740290083,-906.84,0.00010998,2]
[336222500,1724740290092,-500.0,0.00010998,2]
[336222501,1724740290102,-636.72,0.00010998,2]
[336222502,1724740290112,-1851.79,0.00010998,2]
[336222503,1724740290121,-1168.32,0.00010998,2]
[336222504,1724740290134,-500.0,0.00010998,2]
[336222505,1724740290143,-1062.0,0.00010998,2]
[336222506,1724740290154,-855.44,0.00010998,2]
[336222507,1724740290164,-534.39,0.00010998,2]
[336222508,1724740290175,-737.81,0.00010998,2]
[336222509,1724740290186,-606.48,0.00010998,2]
[336222510,1724740290196,-500.0,0.00010998,2]
[336222511,1724740290206,-566.48,0.00010998,2]
[336222512,1724740290216,-754.64,0.00010998,2]
[336222513,1724740290227,-500.0,0.00010998,2]
[336222514,1724740290237,-500.0,0.00010998,2]
[336222515,1724740290247,-565.65,0.00010998,2]
[336222516,1724740290257,-509.46,0.00010998,2]
[336222517,1724740290266,-500.0,0.00010998,2]
[336222518,1724740290275,-500.0,0.00010998,2]
[336222519,1724740290285,-551.59763475,0.00010998,2]
[336222520,1724740290295,-166.866874,0.00010998,2]
[336222521,1724740290305,-166.866879,0.00010998,2]
[336222522,1724740290314,-945.61,0.00010998,2]
[336222523,1724740290324,-540.58,0.00010998,2]
[336222524,1724740290335,-886.86,0.00010998,2]
[336222525,1724740290344,-500.0,0.00010998,2]
[336222526,1724740290354,-516.46,0.00010998,2]
[336222527,1724740290363,-500.0,0.00010998,2]
[336222528,1724740290373,-705.73,0.00010998,2]
[336222529,1724740290383,-500.0,0.00010998,2]
[336222530,1724740290391,-500.0,0.00010998,2]
[336222531,1724740290401,-631.13,0.00010998,2]
[336222532,1724740290410,-651.35,0.00010998,2]
[336222533,1724740290419,-651.35,0.00010998,2]
[336222534,1724740290429,-651.35,0.00010998,2]
[336222535,1724740290439,-651.35,0.00010998,2]
[336222536,1724740290448,-651.35,0.00010998,2]
[336222537,1724740290458,-651.47134218,0.00010998,2]
[336222538,1724740290470,-1319.67,0.00010998,2]
[336222539,1724740290479,-2232.54,0.00010998,2]
[336222540,1724740290488,-500.0,0.00010998,2]
[336222541,1724740290497,-500.0,0.00010998,2]
[336222542,1724740290507,-573.92,0.00010998,2]
[336222543,1724740290516,-1911.46,0.00010998,2]
[336222544,1724740290526,-631.73,0.00010998,2]
[336222545,1724740290535,-598.96278422,0.00010998,2]
[336222546,1724740290545,-713.41,0.00010998,2]
[336222547,1724740290555,-1242.32,0.00010998,2]
[336222548,1724740290565,-1363.52,0.00010998,2]
[336222549,1724740290575,-646.5,0.00010998,2]
[336222550,1724740290585,-503.5,0.00010998,2]
[336222551,1724740290595,-1402.97,0.00010998,2]
[336222552,1724740290604,-1402.97,0.00010998,2]
[336222553,1724740290614,-1402.97,0.00010998,2]
[336222554,1724740290624,-1402.97,0.00010998,2]
[336222555,1724740290633,-1402.97,0.00010998,2]
[336222556,1724740290642,-1403.09,0.00010998,2]
[336222557,1724740290652,-559.84,0.00010998,2]
[336222558,1724740290662,-559.84,0.00010998,2]
[336222559,1724740290671,-559.84,0.00010998,2]
[336222560,1724740290681,-559.84,0.00010998,2]
[336222561,1724740290690,-559.84,0.00010998,2]
[336222562,1724740290699,-559.88094325,0.00010998,2]
[336222563,1724740290709,-1082.91,0.00010998,2]
[336222564,1724740290719,-1082.91,0.00010998,2]
[336222565,1724740290728,-1082.91,0.00010998,2]
[336222566,1724740290737,-1082.91,0.00010998,2]
[336222567,1724740290747,-1082.91,0.00010998,2]
[336222568,1724740290757,-561.86,0.00010998,2]
[336222569,1724740290766,-561.86,0.00010998,2]
[336222570,1724740290776,-561.86,0.00010998,2]
[336222571,1724740290785,-561.86,0.00010998,2]
[336222572,1724740290794,-561.86,0.00010998,2]
[336222573,1724740290804,-561.97632257,0.00010998,2]
[336222574,1724740290813,-9384.94,0.00010998,2]
[336222575,1724740290822,-9384.94,0.00010998,2]
[336222576,1724740290831,-9384.94,0.00010998,2]
[336222577,1724740290841,-9384.94,0.00010998,2]
[336222578,1724740290851,-9384.94,0.00010998,2]
[336222579,1724740290861,-9385.05416833,0.00010998,2]
[336222580,1724740290871,-521.27,0.00010998,2]
[336222581,1724740290881,-500.0,0.00010998,2]
[336222582,1724740290891,-1244.68,0.00010998,2]
[336222583,1724740290900,-513.18,0.00010998,2]
[336222584,1724740290910,-16652.16,0.00010998,2]
[336222585,1724740290919,-16652.16,0.00010998,2]
[336222586,1724740290928,-16652.16,0.00010998,2]
[336222587,1724740290938,-16652.16,0.00010998,2]
[336222588,1724740290947,-16652.34267883,0.00010998,2]
[336222589,1724740290956,-500.0,0.00010998,2]
[336222590,1724740290965,-442.99302,0.00010998,2]
[336222591,1724740290974,-1319.93,0.00010998,2]
[336222592,1724740290984,-1319.93,0.00010998,2]
[336222593,1724740290995,-1319.93,0.00010998,2]
[336222594,1724740291005,-1319.93,0.00010998,2]
[336222595,1724740291014,-1319.93,0.00010998,2]
[336222596,1724740291024,-1319.94915672,0.00010998,2]
[336222597,1724740291032,-442.99302,0.00010998,2]
[336222598,1724740291043,-1042.9,0.00010998,2]
[336222599,1724740291052,-501.6801,0.00010998,2]
[336222600,1724740291062,-501.6801,0.00010998,2]
[336222601,1724740291072,-183.611559,0.00010999,2]
[336222602,1724740291082,-154.566158,0.00010999,2]
[336222603,1724740291091,-154.566158,0.00010999,2]
[336222604,1724740291101,-165.568105,0.00010999,2]
[336222605,1724740291110,-165.568105,0.00010999,2]
[336222606,1724740291119,-165.568105,0.00010999,2]
[336222607,1724740291134,-165.568105,0.00010999,2]
[336222608,1724740291144,-154.566158,0.00010999,2]
[336222609,1724740291153,-154.566158,0.00010999,2]
[336222610,1724740291163,-165.568105,0.00010999,2]
[336222611,1724740291174,-154.566158,0.00010999,2]
[336222612,1724740291184,-165.568105,0.00010999,2]
[336222613,1724740291194,-154.566158,0.00010999,2]
[336222614,1724740291205,-165.568105,0.00010999,2]
[336222615,1724740291214,-154.566158,0.00010999,2]
[336222616,1724740291223,-154.566158,0.00010999,2]
[336222617,1724740291233,-154.566158,0.00010999,2]